[Event "Schachfestival Open-B 2018"]
[Site "Lueneburg"]
[Date "2018.07.11"]
[Round "5"]
[White "Bildat, Emilia"]
[Black "Rothenberg, Nina"]
[Result "1-0"]
[ECO "A45"]
[WhiteElo "1512"]
[BlackElo "1611"]
[Annotator "NA"]
[PlyCount "65"]
[EventDate "2018.07.06"]
[EventType "swiss"]
[EventCountry "GER"]
[SourceTitle "playchess.com"]
[Source "ChessBase"]
[SourceQuality "1"]
[TimeControl "40/5400+30:1800+30"]

1. d4 {[%emt 0:00:00]} Nf6 {[%emt 0:00:00]} 2. Bf4 {[%emt 0:00:00]} e6 {[%emt 0:00:09]} 3. e3 {[%emt 0:00:00]} c5 {[%emt 0:00:40]} 4. c3 {[%emt 0:00:00]} Nc6 {[%emt 0:00:51]} 5. Nd2 {[%emt 0:00:34]} b6 {[%emt 0:02:28]} 6. Ngf3 {[%emt 0:01:13]} Bb7 {[%emt 0:02:07]} 7. h3 {[%emt 0:00:33]} Be7 {[%emt 0:01:44]} 8. Bd3 {[%emt 0:01:00]} O-O {[%emt 0:01:16]} 9. O-O {[%emt 0:00:34]} cxd4 {[%emt 0:02:34]} 10. exd4 {[%emt 0:00:15]} Rc8 {[%emt 0:02:09]} 11. a4 {[%emt 0:02:27]} Nd5 {[%emt 0:02:30]} 12. Bh2 {[%emt 0:00:56]} h6 {[%emt 0:04:52]} 13. Nc4 {[%emt 0:05:11]} d6 {[%emt 0:02:27]} 14. Re1 {[%emt 0:04:02]} Re8 {[%emt 0:02:26]} 15. Qd2 {[%emt 0:03:16]} Qc7 {[%emt 0:07:05]} 16. Ra2 {[%emt 0:03:06]} Nb8 {[%emt 0:03:23]} 17. Na3 {[%emt 0:06:35]} Nc6 {[%emt 0:04:18]} 18. Qe2 {[%emt 0:03:56]} Qd7 {[%emt 0:04:22]} 19. Nc2 {[%emt 0:03:53]} Bf6 {[%emt 0:02:51]} 20. Bb5 {[%emt 0:03:21]} Nc7 {[%emt 0:02:53]} 21. Bc4 {[%emt 0:03:39]} e5 {[%emt 0:03:53]} 22. dxe5 {[%emt 0:01:06]} Nxe5 {[%emt 0:03:00]} 23. Nxe5 {[%emt 0:01:14]} dxe5 {[%emt 0:01:32]} 24. Ne3 {[%emt 0:03:16]} Bg5 {[%emt 0:03:20]} 25. Rd1 {[%emt 0:01:50]} Qc6 {[%emt 0:02:01]} 26. b3 {[%emt 0:06:50]} Kh8 {[%emt 0:02:55]} 27. Bxf7 {[%emt 0:06:52]} Rf8 {[%emt 0:01:48]} 28. Bc4 {[%emt 0:02:39]} Bh4 {[%emt 0:02:20]} 29. f3 {[%emt 0:00:59]} Qg6 {[%emt 0:02:05]} 30. Ng4 {[%emt 0:03:51]} Bxf3 {[%emt 0:03:01]} 31. Nxe5 {[%emt 0:04:06]} Qxg2+ {[%emt 0:05:33]} 32. Qxg2 {[%emt 0:00:25]} Bxg2 {[%emt 0:00:11]} 33. Ng6+ {[%emt 0:00:06]} 1-0

[Event "Schachfestival Open-B 2018"]
[Site "Lueneburg"]
[Date "2018.07.12"]
[Round "6"]
[White "Kaesemann, Holger"]
[Black "Vahabi, Seyed Reza"]
[Result "0-1"]
[ECO "B01"]
[WhiteElo "1746"]
[BlackElo "1704"]
[Annotator "NA"]
[PlyCount "58"]
[EventDate "2018.07.06"]
[EventType "swiss"]
[EventCountry "GER"]
[SourceTitle "playchess.com"]
[Source "ChessBase"]
[SourceQuality "1"]
[TimeControl "40/5400+30:1800+30"]

1. e4 {[%emt 0:00:00]} d5 {[%emt 0:00:48]} 2. exd5 {[%emt 0:00:00]} c6 {[%emt 0:00:09]} 3. dxc6 {[%emt 0:00:11]} Nxc6 {[%emt 0:00:09]} 4. Nf3 {[%emt 0:00:14]} Bg4 {[%emt 0:00:07]} 5. Be2 {[%emt 0:01:39]} e6 {[%emt 0:00:05]} 6. Nc3 {[%emt 0:02:23]} Rc8 {[%emt 0:00:28]} 7. d3 {[%emt 0:06:12]} Bb4 {[%emt 0:00:04]} 8. Bd2 {[%emt 0:00:27]} Nf6 {[%emt 0:00:13]} 9. h3 {[%emt 0:01:35]} Bh5 {[%emt 0:00:12]} 10. O-O {[%emt 0:00:34]} O-O {[%emt 0:00:09]} 11. a3 {[%emt 0:00:30]} Ba5 {[%emt 0:00:18]} 12. Rc1 {[%emt 0:04:58]} Ne7 {[%emt 0:04:39]} 13. b4 {[%emt 0:01:42]} Bb6 {[%emt 0:01:39]} 14. Na4 {[%emt 0:01:57]} Bc7 {[%emt 0:00:52]} 15. Be3 {[%emt 0:08:09]} Bb8 {[%emt 0:00:33]} 16. Nc5 {[%emt 0:11:17]} Qc7 {[%emt 0:00:54]} 17. g3 {[%emt 0:00:42]} Nfd5 {[%emt 0:01:53]} 18. Qd2 {[%emt 0:15:17]} Nf5 {[%emt 0:05:51]} 19. Bd1 {[%emt 0:11:27]} Nfxe3 {[%emt 0:05:13]} 20. fxe3 {[%emt 0:00:34]} Qxg3+ {[%emt 0:00:35]} 21. Qg2 {[%emt 0:01:32]} Qxg2+ {[%emt 0:00:36]} 22. Kxg2 {[%emt 0:00:03]} Nxe3+ {[%emt 0:00:18]} 23. Kf2 {[%emt 0:00:25]} Nxf1 {[%emt 0:00:25]} 24. Kxf1 {[%emt 0:00:01]} Bf4 {[%emt 0:00:37]} 25. Rb1 {[%emt 0:02:02]} b6 {[%emt 0:00:17]} 26. Nd7 {[%emt 0:02:21]} Rfd8 {[%emt 0:00:42]} 27. Nde5 {[%emt 0:00:29]} Bxe5 {[%emt 0:00:41]} 28. Nxe5 {[%emt 0:00:04]} Bxd1 {[%emt 0:00:09]} 29. Rxd1 {[%emt 0:00:09]} Rxc2 {[%emt 0:00:11]} 0-1

[Event "Schachfestival Open-B 2018"]
[Site "Lueneburg"]
[Date "2018.07.12"]
[Round "6"]
[White "Kertesz, Oliver"]
[Black "Paufler, Patrick"]
[Result "0-1"]
[ECO "D02"]
[WhiteElo "1703"]
[BlackElo "1626"]
[Annotator "NA"]
[PlyCount "54"]
[EventDate "2018.07.06"]
[EventType "swiss"]
[EventCountry "GER"]
[SourceTitle "playchess.com"]
[Source "ChessBase"]
[SourceQuality "1"]
[TimeControl "40/5400+30:1800+30"]

1. d4 {[%emt 0:00:00]} d5 {[%emt 0:00:00]} 2. Bf4 {[%emt 0:00:00]} Nf6 {[%emt 0:00:00]} 3. Nf3 {[%emt 0:00:00]} e6 {[%emt 0:00:58]} 4. e3 {[%emt 0:00:04]} c5 {[%emt 0:01:06]} 5. c3 {[%emt 0:00:19]} Nc6 {[%emt 0:00:44]} 6. Nbd2 {[%emt 0:00:14]} Be7 {[%emt 0:00:56]} 7. h3 {[%emt 0:00:13]} O-O {[%emt 0:00:49]} 8. Bd3 {[%emt 0:00:07]} b6 {[%emt 0:00:23]} 9. O-O {[%emt 0:00:15]} Bb7 {[%emt 0:00:33]} 10. e4 {[%emt 0:04:39]} dxe4 {[%emt 0:03:43]} 11. Nxe4 {[%emt 0:00:19]} cxd4 {[%emt 0:02:53]} 12. Qc2 {[%emt 0:11:07]} h6 {[%emt 0:12:02]} 13. Rad1 {[%emt 0:00:23]} Rc8 {[%emt 0:06:19]} 14. Qb1 {[%emt 0:02:20]} Nd5 {[%emt 0:03:35]} 15. Bd2 {[%emt 0:10:26]} dxc3 {[%emt 0:08:06]} 16. Nxc3 {[%emt 0:03:23]} Nxc3 {[%emt 0:06:22]} 17. Bxc3 {[%emt 0:00:27]} Qc7 {[%emt 0:00:32]} 18. Rfe1 {[%emt 0:00:12]} Bb4 {[%emt 0:02:32]} 19. Bh7+ {[%emt 0:15:08]} Kh8 {[%emt 0:00:52]} 20. Bxg7+ {[%emt 0:06:26]} Kxg7 {[%emt 0:00:09]} 21. Rxe6 {[%emt 0:00:54]} fxe6 {[%emt 0:10:42]} 22. Qg6+ {[%emt 0:00:22]} Kh8 {[%emt 0:00:09]} 23. Qxe6 {[%emt 0:04:21]} Rce8 {[%emt 0:05:59]} 24. Qg4 {[%emt 0:02:05]} Qxh7 {[%emt 0:01:33]} 25. Nh4 {[%emt 0:03:38]} Rg8 {[%emt 0:04:47]} 26. Qh5 {[%emt 0:05:25]} Re1+ {[%emt 0:02:51]} 27. Rxe1 {[%emt 0:00:05]} Bxe1 {[%emt 0:00:05]} 0-1

[Event "Schachfestival Open-B 2018"]
[Site "Lueneburg"]
[Date "2018.07.12"]
[Round "6"]
[White "Groth, Matthias"]
[Black "Richter, Matthias Alexander"]
[Result "1-0"]
[ECO "D60"]
[WhiteElo "1661"]
[BlackElo "2259"]
[Annotator "NA"]
[PlyCount "89"]
[EventDate "2018.07.06"]
[EventType "swiss"]
[EventCountry "GER"]
[SourceTitle "playchess.com"]
[Source "ChessBase"]
[SourceQuality "1"]
[TimeControl "40/5400+30:1800+30"]

1. d4 {[%emt 0:00:00]} Nf6 {[%emt 0:00:00]} 2. c4 {[%emt 0:00:00]} e6 {[%emt 0:00:00]} 3. Nc3 {[%emt 0:00:31]} d5 {[%emt 0:00:24]} 4. Bg5 {[%emt 0:00:45]} Be7 {[%emt 0:00:40]} 5. e3 {[%emt 0:00:31]} O-O {[%emt 0:00:45]} 6. Nf3 {[%emt 0:05:15]} Nbd7 {[%emt 0:02:14]} 7. Bd3 {[%emt 0:00:11]} dxc4 {[%emt 0:01:39]} 8. Bxc4 {[%emt 0:00:15]} b6 {[%emt 0:04:09]} 9. O-O {[%emt 0:01:45]} Bb7 {[%emt 0:01:23]} 10. a3 {[%emt 0:02:55]} h6 {[%emt 0:06:28]} 11. Bh4 {[%emt 0:05:00]} Rc8 {[%emt 0:04:26] E12: Queen's Indian: Unusual White 4th moves, 4 a3, 4 Nc3 Bb7 5 a3 and 4 Nc3 Bb7} (11... Ne4 12. Bg3 Nxg3 13. hxg3 c5 14. Qe2 cxd4 15. Nxd4 Ne5 16. Ba6 Qc8 17. Bxb7 Qxb7 18. f4 Nd7 19. Rfd1 Nf6 20. Qf3 Qxf3 {½-½ (20) Sale,S (2409)-Kuljasevic,D (2577) Split 2013}) 12. b4 {[%emt 0:02:21]} c5 $146 {[%emt 0:02:47]} ({Predecessor:} 12... Ne4 13. Bxe7 Qxe7 14. Nb5 a6 15. Nxc7 Rxc7 16. Qd3 b5 17. Bb3 Rc3 18. Qd1 Rfc8 19. Ne1 {0-1 (47) Correia,M (1718)-Correia,V (1439) Iracemapolis 2013}) 13. dxc5 {[%emt 0:01:43]} bxc5 {[%emt 0:00:14]} 14. b5 {[%emt 0:00:38]} Ne4 {[%emt 0:04:03]} 15. Nxe4 {[%emt 0:05:20]} Bxe4 {[%emt 0:02:41]} 16. Bg3 {[%emt 0:01:25]} Nb6 {[%emt 0:02:18]} 17. Be2 {[%emt 0:03:46]} c4 {[%emt 0:05:22]} 18. Nd4 {[%emt 0:06:08]} Bd6 {[%emt 0:06:59]} 19. f3 {[%emt 0:01:07]} Bxg3 {[%emt 0:04:30]} 20. fxe4 {[%emt 0:03:12]} Be5 {[%emt 0:02:00]} 21. Nc6 {[%emt 0:00:37]} Qc7 {[%emt 0:01:29]} 22. Rc1 {[%emt 0:05:01]} Bxh2+ {[%emt 0:05:48]} 23. Kh1 {[%emt 0:01:01]} Bg3 {[%emt 0:01:01]} 24. Bxc4 {[%emt 0:00:44]} Nxc4 {[%emt 0:00:16]} 25. Rxc4 {[%emt 0:00:23]} Qb7 {[%emt 0:02:26]} 26. Qf3 {[%emt 0:02:58]} Bh4 {[%emt 0:04:18]} 27. Qh5 {[%emt 0:11:16]} Bg5 {[%emt 0:04:22]} 28. Rc3 {[%emt 0:17:00]} Rc7 {[%emt 0:07:47]} 29. Qe2 {[%emt 0:01:44]} Qb6 {[%emt 0:07:02]} 30. a4 {[%emt 0:01:26]} a6 {[%emt 0:04:39]} 31. Rfc1 {[%emt 0:06:16]} Rfc8 {[%emt 0:02:21]} 32. a5 {[%emt 0:04:28]} Qxb5 {[%emt 0:07:49]} 33. Qxb5 {[%emt 0:00:45]} axb5 {[%emt 0:00:01]} 34. Ne7+ {[%emt 0:00:15]} Rxe7 {[%emt 0:00:16]} 35. Rxc8+ {[%emt 0:00:14]} Kh7 {[%emt 0:00:02]} 36. R1c7 {[%emt 0:00:37]} Rxc7 {[%emt 0:01:11]} 37. Rxc7 {[%emt 0:00:02]} Kg6 {[%emt 0:00:12]} 38. Rc3 {[%emt 0:01:21]} Bd8 {[%emt 0:00:51]} 39. a6 {[%emt 0:00:27]} Bb6 {[%emt 0:00:09]} 40. Kg1 {[%emt 0:00:27]} b4 $18 {[%emt 0:00:16]} 41. Rb3 {[%emt 0:31:30]} Bc5 {[%emt 0:30:12]} 42. Kf2 {[%emt 0:00:30]} Kf6 {[%emt 0:00:36]} 43. Rxb4 {[%emt 0:00:58]} Ke5 {[%emt 0:02:02]} 44. Rb5 {[%emt 0:00:16]} Kd6 {[%emt 0:00:06]} 45. Rxc5 {[%emt 0:00:08]} 1-0

[Event "Schachfestival Open-B 2018"]
[Site "Lueneburg"]
[Date "2018.07.12"]
[Round "6"]
[White "Rothenberg, Nina"]
[Black "Thomas, Jeremy"]
[Result "1/2-1/2"]
[ECO "B18"]
[WhiteElo "1611"]
[BlackElo "1485"]
[Annotator "NA"]
[PlyCount "60"]
[EventDate "2018.07.06"]
[EventType "swiss"]
[EventCountry "GER"]
[SourceTitle "playchess.com"]
[Source "ChessBase"]
[SourceQuality "1"]
[TimeControl "40/5400+30:1800+30"]

1. e4 {[%emt 0:00:00]} c6 {[%emt 0:00:00]} 2. d4 {[%emt 0:00:10]} d5 {[%emt 0:00:28]} 3. Nc3 {[%emt 0:00:05]} dxe4 {[%emt 0:00:44]} 4. Nxe4 {[%emt 0:00:05]} Bf5 {[%emt 0:00:31]} 5. Ng3 {[%emt 0:00:05]} Bg6 {[%emt 0:00:53]} 6. N1e2 {[%emt 0:00:17]} Nf6 {[%emt 0:04:05]} 7. Nf4 {[%emt 0:00:26]} e6 {[%emt 0:01:58]} 8. Bc4 {[%emt 0:01:24]} Bd6 {[%emt 0:05:16]} 9. c3 {[%emt 0:04:06]} Qc7 {[%emt 0:03:46]} 10. Qf3 {[%emt 0:01:09]} Nbd7 {[%emt 0:02:05]} 11. O-O {[%emt 0:01:32]} O-O {[%emt 0:02:38]} 12. h4 {[%emt 0:08:35]} e5 {[%emt 0:13:54]} 13. Nxg6 {[%emt 0:04:11]} hxg6 {[%emt 0:01:29]} 14. Ne4 {[%emt 0:10:25]} Nxe4 {[%emt 0:03:49]} 15. Qxe4 {[%emt 0:00:18]} Nf6 {[%emt 0:01:11]} 16. Qxg6 {[%emt 0:01:23]} Kh8 {[%emt 0:03:22]} 17. Qf5 {[%emt 0:04:32]} exd4 {[%emt 0:02:36]} 18. cxd4 {[%emt 0:02:24]} Qb6 {[%emt 0:03:00]} 19. Bd3 {[%emt 0:04:32]} Qxd4 {[%emt 0:04:46]} 20. Bg5 {[%emt 0:02:43]} Qe5 {[%emt 0:01:05]} 21. Qxe5 {[%emt 0:01:46]} Bxe5 {[%emt 0:00:14]} 22. Rab1 {[%emt 0:01:27]} Rad8 {[%emt 0:03:00]} 23. Bc4 {[%emt 0:01:54]} Kg8 {[%emt 0:02:09]} 24. Rfe1 {[%emt 0:02:03]} Rfe8 {[%emt 0:01:23]} 25. b3 {[%emt 0:03:13]} Kf8 {[%emt 0:09:24]} 26. Rbd1 {[%emt 0:01:30]} Bc3 {[%emt 0:03:31]} 27. Rxe8+ {[%emt 0:01:35]} Rxe8 {[%emt 0:00:59]} 28. Bxf6 {[%emt 0:01:58]} Bxf6 {[%emt 0:00:15]} 29. Rd7 {[%emt 0:00:03]} Re7 {[%emt 0:00:23]} 30. Rd8+ {[%emt 0:00:10]} Re8 {[%emt 0:00:12]} 1/2-1/2

[Event "Schachfestival Open-B 2018"]
[Site "Lueneburg"]
[Date "2018.07.13"]
[Round "7"]
[White "Berndt, Matthias"]
[Black "Raedisch, Peter"]
[Result "*"]
[WhiteElo "2077"]
[BlackElo "1606"]
[Annotator "NA"]
[PlyCount "68"]
[EventDate "2018.07.06"]
[EventType "swiss"]
[EventCountry "GER"]
[SourceTitle "playchess.com"]
[Source "ChessBase"]
[SourceQuality "1"]
[TimeControl "40/5400+30:1800+30"]

1. d4 {[%emt 0:00:00]} d5 {[%emt 0:00:00]} 2. g3 {[%emt 0:00:00]} a6 {[%emt 0:00:00]} 3. Bg2 {[%emt 0:00:14]} c6 {[%emt 0:00:51]} 4. Nf3 {[%emt 0:00:27]} h6 {[%emt 0:01:04]} 5. O-O {[%emt 0:00:15]} Bf5 {[%emt 0:02:06]} 6. Nbd2 {[%emt 0:03:40]} Nf6 {[%emt 0:08:33]} 7. c4 {[%emt 0:01:36]} Qc8 {[%emt 0:00:31]} 8. cxd5 {[%emt 0:00:27]} Bh3 {[%emt 0:00:55]} 9. dxc6 {[%emt 0:00:35]} Nxc6 {[%emt 0:00:34]} 10. Qb3 {[%emt 0:00:56]} Bxg2 {[%emt 0:00:25]} 11. Kxg2 {[%emt 0:00:12]} e6 {[%emt 0:00:38]} 12. e4 {[%emt 0:00:34]} Be7 {[%emt 0:00:36]} 13. e5 {[%emt 0:00:22]} Nd5 {[%emt 0:04:18]} 14. Ne4 {[%emt 0:01:40]} O-O {[%emt 0:01:28]} 15. Bd2 {[%emt 0:01:57]} Rd8 {[%emt 0:00:36]} 16. Rac1 {[%emt 0:01:00]} Qb8 {[%emt 0:00:27]} 17. a3 {[%emt 0:03:09]} Qa7 {[%emt 0:02:55]} 18. Be3 {[%emt 0:01:51]} Qb8 {[%emt 0:00:48]} 19. Rc2 {[%emt 0:03:17]} Rf8 {[%emt 0:03:47]} 20. Nc5 {[%emt 0:03:19]} Bxc5 {[%emt 0:01:35]} 21. Rxc5 {[%emt 0:00:13]} Qc7 {[%emt 0:01:27]} 22. Qc2 {[%emt 0:02:32]} Qe7 {[%emt 0:00:57]} 23. Qe2 {[%emt 0:02:08]} Rad8 {[%emt 0:00:54]} 24. Rfc1 {[%emt 0:00:35]} Qd7 {[%emt 0:05:32]} 25. Nd2 {[%emt 0:02:42]} Nde7 {[%emt 0:05:09]} 26. Qg4 {[%emt 0:02:43]} Nf5 {[%emt 0:03:27]} 27. Ne4 {[%emt 0:04:49]} Kh7 {[%emt 0:01:47]} 28. Nd6 {[%emt 0:01:56]} Nxd6 {[%emt 0:01:06]} 29. exd6 {[%emt 0:00:21]} Qxd6 {[%emt 0:00:29]} 30. Rh5 {[%emt 0:01:42]} e5 {[%emt 0:07:30]} 31. Rc5 {[%emt 0:07:37]} Qg6 {[%emt 0:04:00]} 32. Qf3 {[%emt 0:03:38]} f6 {[%emt 0:05:20]} 33. dxe5 {[%emt 0:03:11]} Nxe5 {[%emt 0:02:21]} 34. Qe2 {[%emt 0:02:13]} Rd7 {[%emt 0:02:03]} *

[Event "Schachfestival Open-B 2018"]
[Site "Lueneburg"]
[Date "2018.07.13"]
[Round "7"]
[White "Vahabi, Seyed Reza"]
[Black "Groth, Matthias"]
[Result "0-1"]
[WhiteElo "1704"]
[BlackElo "1661"]
[Annotator "NA"]
[PlyCount "44"]
[EventDate "2018.07.06"]
[EventType "swiss"]
[EventCountry "GER"]
[SourceTitle "playchess.com"]
[Source "ChessBase"]
[SourceQuality "1"]
[TimeControl "40/5400+30:1800+30"]

1. d4 {[%emt 0:00:00]} d5 {[%emt 0:00:00]} 2. Bf4 {[%emt 0:00:00]} Nf6 {[%emt 0:01:28]} 3. Nf3 {[%emt 0:00:00]} Bf5 {[%emt 0:02:09]} 4. e3 {[%emt 0:00:02]} e6 {[%emt 0:01:10]} 5. Bd3 {[%emt 0:03:02]} Bg6 {[%emt 0:03:11]} 6. Nbd2 {[%emt 0:05:50]} Bd6 {[%emt 0:00:22]} 7. Bg5 {[%emt 0:00:43]} Nbd7 {[%emt 0:01:50]} 8. Rc1 {[%emt 0:06:31]} O-O {[%emt 0:04:23]} 9. Bxg6 {[%emt 0:00:47]} hxg6 {[%emt 0:01:11]} 10. c4 {[%emt 0:00:26]} c6 {[%emt 0:04:19]} 11. O-O {[%emt 0:02:24]} a6 {[%emt 0:05:23]} 12. e4 {[%emt 0:04:29]} dxe4 {[%emt 0:00:53]} 13. Nxe4 {[%emt 0:00:19]} Be7 {[%emt 0:00:47]} 14. Nc3 {[%emt 0:03:26]} b5 {[%emt 0:06:01]} 15. Qe2 {[%emt 0:09:00]} Nd5 {[%emt 0:03:28]} 16. cxd5 {[%emt 0:00:32]} Bxg5 {[%emt 0:02:07]} 17. Nxg5 {[%emt 0:00:33]} Qxg5 {[%emt 0:00:52]} 18. dxe6 {[%emt 0:00:11]} Nf6 {[%emt 0:00:42]} 19. exf7+ {[%emt 0:01:37]} Rxf7 {[%emt 0:00:08]} 20. Qe6 {[%emt 0:13:10]} Raf8 {[%emt 0:00:48]} 21. Rcd1 {[%emt 0:12:49]} Ng4 {[%emt 0:06:26]} 22. Ne4 {[%emt 0:09:14]} Qf4 {[%emt 0:09:37]} 0-1

[Event "Schachfestival Open-B 2018"]
[Site "Lueneburg"]
[Date "2018.07.13"]
[Round "7"]
[White "Thomas, Jeremy"]
[Black "Braeutigam, Katerina"]
[Result "1/2-1/2"]
[WhiteElo "1485"]
[BlackElo "1706"]
[Annotator "NA"]
[PlyCount "61"]
[EventDate "2018.07.06"]
[EventType "swiss"]
[EventCountry "GER"]
[SourceTitle "playchess.com"]
[Source "ChessBase"]
[SourceQuality "1"]
[TimeControl "40/5400+30:1800+30"]

1. e4 {[%emt 0:00:00]} d5 {[%emt 0:00:00]} 2. exd5 {[%emt 0:00:00]} Qxd5 {[%emt 0:00:00]} 3. Nc3 {[%emt 0:01:22]} Qa5 {[%emt 0:00:00]} 4. d4 {[%emt 0:00:58]} Nf6 {[%emt 0:00:14]} 5. Nf3 {[%emt 0:00:53]} c6 {[%emt 0:00:15]} 6. Bc4 {[%emt 0:01:54]} Bf5 {[%emt 0:00:31]} 7. O-O {[%emt 0:01:03]} e6 {[%emt 0:00:29]} 8. Re1 {[%emt 0:03:55]} Be7 {[%emt 0:08:18]} 9. Bf4 {[%emt 0:04:40]} O-O {[%emt 0:00:18]} 10. Nh4 {[%emt 0:02:42]} Bg6 {[%emt 0:01:08]} 11. Nxg6 {[%emt 0:04:03]} hxg6 {[%emt 0:00:25]} 12. a3 {[%emt 0:02:32]} Qb6 {[%emt 0:02:31]} 13. Bb3 {[%emt 0:09:26]} Rd8 {[%emt 0:01:56]} 14. Ne2 {[%emt 0:02:54]} Bd6 {[%emt 0:05:29]} 15. Qd2 {[%emt 0:04:38]} e5 {[%emt 0:08:08]} 16. Be3 {[%emt 0:08:12]} exd4 {[%emt 0:00:23]} 17. Bxd4 {[%emt 0:00:43]} Qc7 {[%emt 0:00:37]} 18. Ng3 {[%emt 0:02:26]} Bc5 {[%emt 0:05:19]} 19. c3 {[%emt 0:03:44]} Bxd4 {[%emt 0:01:15]} 20. cxd4 {[%emt 0:00:09]} Qb6 {[%emt 0:00:29]} 21. Qc3 {[%emt 0:01:32]} Rxd4 {[%emt 0:02:48]} 22. Re7 {[%emt 0:00:33]} Nd5 {[%emt 0:02:58]} 23. Bxd5 {[%emt 0:01:44]} Rxd5 {[%emt 0:00:55]} 24. Qf3 {[%emt 0:02:13]} f6 {[%emt 0:08:02]} 25. Re8+ {[%emt 0:00:44]} Kf7 {[%emt 0:01:45]} 26. Qe4 {[%emt 0:01:42]} Re5 {[%emt 0:03:07]} 27. Rxe5 {[%emt 0:00:57]} fxe5 {[%emt 0:00:16]} 28. Qxe5 {[%emt 0:00:26]} Nd7 {[%emt 0:00:39]} 29. Qf4+ {[%emt 0:01:43]} Nf6 {[%emt 0:00:57]} 30. b4 {[%emt 0:04:15]} Rd8 {[%emt 0:02:44]} 31. Ne2 {[%emt 0:03:09]} 1/2-1/2